bitfinex/quotes_BTCUSD_20251226
["timestamp","ask_amount","ask_price","bid_price","bid_amount"]
[1766761904824,0.0118,86911.0,86875.0,0.0118]
[1766761904825,0.05724,86932.0,86886.0,0.07387]
[1766761905045,0.05724,86932.0,86890.0,0.0115088]
[1766761905046,0.0118,86926.0,86890.0,0.0115088]
[1766761905221,0.0118,86926.0,86892.0,0.07387]
[1766761905382,0.05724,86932.0,86893.0,0.0115084]
[1766761905590,0.23002793,86946.0,86892.0,0.05754237]
[1766761905591,0.02357583,86943.0,86909.0,0.07387]
[1766761905818,0.01150231,86939.0,86911.0,0.07387]
[1766761906018,0.01150443,86923.0,86904.0,0.0118]
[1766761906196,0.01150456,86922.0,86892.0,0.07387]
[1766761906436,0.01150496,86919.0,86898.0,0.0118]
[1766761906641,0.0118,86925.0,86899.0,0.0118]
[1766761906888,0.01150708,86903.0,86861.0,0.07387]
[1766761907084,0.01150708,86903.0,86872.0,0.04608]
[1766761907307,0.05753736,86901.0,86872.0,0.04608]
[1766761907492,0.05754132,86895.0,86870.0,0.0118]
[1766761907642,0.0115084,86893.0,86865.0,0.07387]
[1766761907852,0.01150893,86889.0,86865.0,0.07387]
[1766761908061,0.01150853,86892.0,86865.0,0.07397792]
[1766761908256,0.1108,86897.0,86866.0,0.00857779]
[1766761908482,0.1017,86897.0,86866.0,0.08244779]
[1766761908723,0.01150668,86906.0,86866.0,0.08244779]
[1766761908724,0.01150708,86903.0,86866.0,0.08244779]
[1766761908933,0.23012623,86909.0,86866.0,0.08244779]
[1766761908934,0.01150655,86907.0,86866.0,0.08244779]
[1766761909102,0.06904042,86906.0,86866.0,0.08244779]
[1766761909318,0.01150695,86904.0,86868.0,0.07387]
[1766761909651,0.23011388,86914.0,86868.0,0.07387]
[1766761909652,0.02941177,86908.0,86868.0,0.07387]
[1766761909872,0.538576,86938.0,86867.0,0.18653642]
[1766761909873,0.02941177,86918.0,86882.0,0.07387]
[1766761910085,0.0118,86917.0,86884.0,0.07387]
[1766761910311,0.0118,86917.0,86886.0,0.07387]
[1766761910544,0.0118,86917.0,86889.0,0.08537893]
[1766761910799,0.02941177,86942.0,86902.0,0.07387]
[1766761911013,0.0118,86941.0,86914.0,0.07387]
[1766761911219,0.0118,86941.0,86916.0,0.07387]
[1766761911645,0.02941177,86965.0,86923.0,0.07387]
[1766761911855,0.01149874,86966.0,86918.0,0.01150509]
[1766761911856,0.0118,86957.0,86925.0,0.07387]
[1766761912099,0.0118,86957.0,86924.0,0.02609011]
[1766761912100,0.0118,86957.0,86929.0,0.07387]
[1766761912305,0.00010797,86957.0,86936.0,0.07387]
[1766761912530,0.00010797,86957.0,86929.0,0.07387]
[1766761912741,0.00010797,86957.0,86938.0,0.07387]
[1766761912946,0.00010797,86957.0,86928.0,0.12897728]
[1766761912947,0.00010797,86957.0,86940.0,0.07387]
[1766761913162,0.01149702,86979.0,86942.0,0.07387]
[1766761913378,0.01149676,86981.0,86944.0,0.07387]
[1766761913585,0.01149676,86981.0,86946.0,0.07387]
[1766761913586,0.0078,86975.0,86946.0,0.07387]
[1766761913799,0.01929755,86975.0,86946.0,0.07387]
[1766761914011,0.06528781,86975.0,86946.0,0.07387]
[1766761914220,0.0078,86975.0,86946.0,0.07387]
[1766761914394,0.0078,86975.0,86942.0,0.00010797]
[1766761914395,0.01149702,86979.0,86948.0,0.07387]
[1766761914609,0.01149676,86981.0,86942.0,0.00010797]
[1766761914610,0.01149834,86969.0,86947.0,0.0118]
[1766761914803,0.01149782,86973.0,86947.0,0.0118]
[1766761915008,0.01149848,86968.0,86947.0,0.0118]
[1766761915148,0.01149861,86967.0,86947.0,0.0118]
[1766761915353,0.01149861,86967.0,86942.0,0.00010797]
[1766761915354,0.01149887,86965.0,86942.0,0.00010797]
[1766761915553,0.0118,86972.0,86943.0,0.07387]
[1766761915801,0.05749505,86964.0,86943.0,0.07387]
[1766761915996,0.01149861,86967.0,86942.0,0.00010797]
[1766761916172,0.01149914,86963.0,86942.0,0.00010797]
[1766761916375,0.01149848,86968.0,86942.0,0.00010797]
[1766761916575,0.01149927,86962.0,86942.0,0.00010797]
[1766761916890,0.0118,86972.0,86929.0,0.07387]
[1766761917098,0.01150059,86952.0,86924.0,0.0118]
[1766761917294,0.01150165,86944.0,86924.0,0.0118]
[1766761917497,0.0118,86951.0,86913.0,0.07387]
[1766761917498,0.06901646,86936.0,86913.0,0.07387]
[1766761917655,0.01150337,86931.0,86905.0,0.0118]
[1766761917853,0.45995777,86965.0,86905.0,0.0118]
[1766761917854,0.0118,86930.0,86905.0,0.0118]
[1766761918273,0.0118,86930.0,86897.0,0.07387]
[1766761918500,0.01190775,86930.0,86904.0,0.0118]
[1766761918703,0.0115043,86924.0,86897.0,0.07387]
[1766761918905,0.0115043,86924.0,86898.0,0.019187]
[1766761919102,0.01190775,86930.0,86898.0,0.019187]
[1766761919336,0.01190775,86930.0,86899.0,0.07387]
[1766761919763,0.00010775,86930.0,86907.0,0.07387]
[1766761919899,0.00010775,86930.0,86909.0,0.07387]
[1766761920100,0.00010775,86930.0,86911.0,0.07387]
[1766761920305,0.01149927,86962.0,86916.0,0.07387]
[1766761920504,0.01149927,86962.0,86910.0,0.008567]
[1766761920505,0.0001,86955.0,86910.0,0.008567]
[1766761920707,0.01150297,86934.0,86905.0,0.0118]
[1766761920926,0.0118,86936.0,86906.0,0.08567]
[1766761921527,0.0118,86935.0,86906.0,0.08567]
[1766761921933,0.0118,86935.0,86906.0,0.08603023]
[1766761922143,0.0118,86935.0,86908.0,0.07387]
[1766761922537,0.01150337,86931.0,86908.0,0.07387]
[1766761922744,0.01150297,86934.0,86908.0,0.07387]
[1766761922936,0.0115035,86930.0,86908.0,0.07387]
[1766761923316,0.01150443,86923.0,86908.0,0.07387]
[1766761923521,0.0118,86922.0,86908.0,0.07387]
[1766761923747,0.0118,86922.0,86906.0,0.00036023]
[1766761923948,0.01150509,86918.0,86906.0,2.3e-07]
[1766761924147,0.05753229,86908.0,86906.0,2.3e-07]
[1766761924307,0.0118,86907.0,86906.0,2.3e-07]
[1766761924508,0.01150787,86897.0,86877.0,0.07387]
[1766761924710,0.0118,86896.0,86877.0,0.07387]
[1766761924914,0.0118,86896.0,86877.0,0.081257]
[1766761925725,0.0115084,86893.0,86877.0,0.081257]
[1766761925963,0.0118,86896.0,86865.0,0.0118]
[1766761926171,0.0115088,86890.0,86863.0,0.07387]
[1766761926396,0.0118,86896.0,86863.0,0.07387]
[1766761926397,0.01150827,86894.0,86863.0,0.07387]
[1766761926593,0.01150814,86895.0,86863.0,0.07387]
[1766761926750,0.0115088,86890.0,86863.0,0.081257]
[1766761926962,0.0115088,86890.0,86851.0,0.12897728]
[1766761926963,0.01150973,86883.0,86851.0,0.07387]
[1766761927285,0.01151079,86875.0,86851.0,0.07387]
[1766761927464,0.0118,86874.0,86851.0,0.07387]
[1766761928046,0.011508,86896.0,86853.0,0.07387]
[1766761928236,0.05872141,86909.0,86845.0,0.01151476]
[1766761928237,0.03482432,86886.0,86859.0,0.07387]
[1766761928439,0.03482432,86886.0,86852.0,0.15229111]
[1766761928440,0.02340133,86908.0,86870.0,0.07387]
[1766761928720,0.0118,86917.0,86886.0,0.07387]
[1766761928918,0.01150377,86928.0,86888.0,0.07387]
[1766761929119,0.23006464,86933.0,86890.0,0.07387]
[1766761929120,0.01150483,86920.0,86890.0,0.07387]
[1766761929657,0.01150522,86917.0,86890.0,0.07387]
[1766761929865,0.0118,86916.0,86890.0,0.07387]
[1766761930460,0.01150509,86918.0,86890.0,0.07387]
[1766761930666,0.05751979,86927.0,86892.0,0.07387]
[1766761931004,0.01150469,86921.0,86892.0,0.07387]
[1766761931205,0.02342555,86930.0,86892.0,0.07387]
[1766761931409,0.02342555,86936.0,86905.0,0.12897728]
[1766761931557,0.05751065,86941.0,86907.0,0.07387]
[1766761931558,0.0118,86939.0,86907.0,0.07387]
[1766761931761,0.0292395,86959.0,86914.0,0.07387]
[1766761931991,0.0292395,86959.0,86911.0,0.12897728]
[1766761931992,0.04604,86961.0,86936.0,0.07387]
[1766761932151,0.0234426,86978.0,86940.0,0.07387]
[1766761932350,0.0118,86977.0,86942.0,0.07387]
[1766761932549,0.0234426,86984.0,86946.0,0.07387]
[1766761932773,0.02341618,86986.0,86954.0,0.07387]
[1766761932991,0.02341618,86986.0,86955.0,0.0118]
[1766761932992,0.06898085,86981.0,86955.0,0.0118]
[1766761933174,0.01149689,86980.0,86955.0,0.0118]
[1766761933370,0.01192008,86986.0,86955.0,0.0118]
[1766761933569,0.06897915,86983.0,86956.0,0.008567]
[1766761933906,0.05748117,86985.0,86956.0,0.008567]
[1766761934130,0.02341618,86986.0,86947.0,0.007387]
[1766761934131,0.01149848,86968.0,86947.0,0.007387]
[1766761934304,0.0118,86986.0,86880.0,0.58406364]
[1766761934305,0.0118,86967.0,86950.0,0.0118]
[1766761934466,0.0118,86967.0,86937.0,0.11841]
[1766761934467,0.01149874,86966.0,86947.0,0.0118]
[1766761934663,0.0118,86967.0,86947.0,0.0118]
[1766761934866,0.0234426,86991.0,86948.0,0.12897728]
[1766761935048,0.0114961,86986.0,86950.0,0.07237]
[1766761935249,0.01149702,86979.0,86950.0,0.07237]
[1766761935449,0.01149702,86979.0,86926.0,0.12897728]
[1766761935450,0.01149861,86967.0,86926.0,0.12897728]
[1766761935721,0.0118,86966.0,86931.0,0.07237]
[1766761935936,4.788995,86965.0,86912.0,0.07237]
[1766761936243,0.01150125,86947.0,86914.0,0.07237]
[1766761936414,0.01150231,86939.0,86914.0,0.07237]
[1766761936614,0.01150178,86943.0,86915.0,0.0118]
[1766761936957,0.06930682,86947.0,86894.0,0.12897728]
[1766761936958,0.01150245,86938.0,86916.0,0.092587]
[1766761937162,0.0118,86937.0,86916.0,0.092587]
[1766761937726,0.01150086,86950.0,86916.0,0.092587]
[1766761937890,0.02343157,86959.0,86924.0,0.07237]
[1766761938116,0.05748932,86973.0,86923.0,0.01150443]
[1766761938117,0.0292395,86984.0,86946.0,0.07237]
[1766761938318,0.04604,86988.0,86954.0,0.07237]
[1766761938319,0.0118,86986.0,86954.0,0.07237]
[1766761938552,0.0118,86986.0,86956.0,0.07237]
[1766761939178,0.01149544,86991.0,86955.0,0.0118]
[1766761939179,0.0292395,87002.0,86962.0,0.07237]
[1766761939423,0.0292395,87002.0,86959.0,0.12897728]
[1766761939424,0.02329412,87001.0,86964.0,0.07237]
[1766761939597,0.02343888,87011.0,86974.0,0.07237]
[1766761939835,0.05745845,87020.0,86989.0,0.07237]
[1766761939836,0.02343888,87020.0,86989.0,0.07237]
[1766761939980,0.0118,87023.0,86991.0,0.07237]
[1766761940515,0.011492,87017.0,86992.0,0.0118]
[1766761940648,0.0118,87023.0,86992.0,0.0118]
[1766761940856,0.01149227,87015.0,86992.0,0.0118]
[1766761941060,0.01189187,87018.0,86992.0,0.0118]
[1766761941266,0.01149253,87013.0,86991.0,0.07237]
[1766761941486,0.0004,87018.0,86917.0,0.12897728]
[1766761941691,0.0118,87017.0,86974.0,0.08417]
[1766761941890,0.0114924,87014.0,86974.0,0.08417]
[1766761942223,0.02329213,87016.0,86975.0,0.07237]
[1766761942423,0.0118,87015.0,86975.0,0.07237]
[1766761942568,0.01149266,87012.0,86975.0,0.07237]
[1766761942771,0.05747089,87001.0,86976.0,0.013021]
[1766761943030,0.0118,87000.0,86961.0,0.12897728]
[1766761943169,0.0118,87000.0,86967.0,0.0118]
[1766761943170,0.01149451,86998.0,86967.0,0.0118]
[1766761943381,0.0114953,86992.0,86967.0,0.0118]
[1766761943575,0.0114953,86992.0,86958.0,0.07237]
[1766761943576,0.04604,86998.0,86958.0,0.07237]
[1766761943785,0.0114957,86989.0,86958.0,0.07237]
[1766761944042,0.0118,86988.0,86959.0,0.007237]
[1766761944243,0.0578,86987.0,86959.0,0.007237]
[1766761944514,0.06929597,86987.0,86959.0,0.007237]
[1766761944698,0.0578,86987.0,86959.0,0.00010775]
[1766761944895,0.0114961,86986.0,86959.0,0.00010775]
[1766761945286,0.01149716,86978.0,86959.0,0.00010775]
[1766761945486,0.0118,86977.0,86959.0,0.00010775]
[1766761945689,0.01149649,86983.0,86959.0,0.00010775]
[1766761945690,0.0118,86976.0,86959.0,0.00010775]
[1766761945870,0.06782,86989.0,86959.0,0.00010775]
[1766761946081,0.0578,86988.0,86959.0,0.00010775]
[1766761946276,0.01149649,86983.0,86959.0,0.00010775]
[1766761946482,0.01149663,86982.0,86959.0,0.00010775]
[1766761946684,0.01149768,86974.0,86959.0,0.00010775]
[1766761946889,0.01149755,86975.0,86959.0,0.00010775]
[1766761947109,0.0578,86981.0,86959.0,0.00010775]
[1766761947264,0.06898279,86979.0,86959.0,0.00010775]
[1766761947469,0.01149623,86985.0,86959.0,0.00010775]
[1766761947707,0.01149649,86983.0,86959.0,0.00010775]
[1766761947935,0.0118,86982.0,86959.0,0.00010775]
[1766761948078,0.0578,86982.0,86959.0,0.00010775]
[1766761948278,0.06929663,86982.0,86959.0,0.00010775]
[1766761948629,0.01149874,86966.0,86959.0,0.00010775]
[1766761948790,0.0118,86965.0,86918.0,0.07237]
[1766761948989,0.01150192,86942.0,86918.0,0.07237]
[1766761949246,0.01150231,86939.0,86918.0,0.07237]
[1766761949387,0.0118,86941.0,86906.0,0.0118]
[1766761949388,0.01150258,86937.0,86906.0,0.0118]
[1766761949604,0.01150297,86934.0,86906.0,0.0118]
[1766761949816,0.01150258,86937.0,86901.0,0.07237]
[1766761949817,0.01150324,86932.0,86901.0,0.07237]
[1766761950090,0.0115002,86955.0,86908.0,0.12897728]
[1766761950202,0.01150139,86946.0,86908.0,0.12897728]
[1766761950407,0.36829182,86971.0,86913.0,0.07237]
[1766761950408,0.0118,86945.0,86913.0,0.07237]
[1766761950610,0.0118,86944.0,86924.0,0.07237]
[1766761950847,0.00035978,86945.0,86924.0,0.07237]
[1766761951091,0.0118,86943.0,86912.0,0.0118]
[1766761951238,0.0118,86943.0,86913.0,0.12897728]
[1766761951406,0.00035978,86945.0,86914.0,0.02131473]
[1766761951612,0.0118,86944.0,86915.0,0.07237]
[1766761951862,0.00035978,86945.0,86915.0,0.07237]
[1766761952090,0.0118,86943.0,86915.0,0.07237]
[1766761952292,0.0118,86943.0,86895.0,0.01150814]
[1766761952293,0.01150218,86940.0,86898.0,0.07237]
[1766761952496,0.00035978,86945.0,86908.0,0.12897728]
[1766761952497,0.0578,86939.0,86908.0,0.12897728]
[1766761952702,0.01150297,86934.0,86901.0,0.07237]
[1766761953049,0.01150337,86931.0,86901.0,0.07237]
[1766761953249,0.0115039,86927.0,86885.0,0.07237]
[1766761953362,0.01150469,86921.0,86889.0,0.0118]
[1766761953573,0.0118,86926.0,86889.0,0.0118]
[1766761954325,0.02330403,86926.0,86889.0,0.0118]
[1766761954542,0.01150417,86925.0,86889.0,0.0118]
[1766761954733,0.0118,86926.0,86890.0,0.01043047]
[1766761954932,0.05751423,86935.0,86890.0,0.01043047]
[1766761955140,0.05754417,86925.0,86890.0,0.01043047]
[1766761955310,0.0118,86924.0,86890.0,0.01043047]
[1766761956062,0.01150456,86922.0,86890.0,0.01043047]
[1766761956222,0.01150496,86919.0,86891.0,0.01147352]
[1766761956419,0.0118,86924.0,86891.0,0.01147352]
[1766761956625,0.0690266,86923.0,86891.0,0.01147352]
[1766761956844,0.01150496,86919.0,86891.0,0.01147352]
[1766761957061,0.01150469,86921.0,86892.0,0.01157783]
[1766761957204,0.0118,86924.0,86892.0,0.01157783]
[1766761957409,0.01150456,86922.0,86892.0,0.01157783]
[1766761957658,0.0233043,86924.0,86886.0,0.02013473]
[1766761957659,0.0118,86921.0,86886.0,0.02013473]
[1766761957806,0.01150483,86920.0,86886.0,0.02013473]
[1766761958009,0.01150509,86918.0,86886.0,0.02013473]
[1766761958219,0.01150496,86919.0,86886.0,0.02013473]
[1766761958415,0.01150496,86919.0,86887.0,0.0221482]
[1766761958416,0.01150549,86915.0,86887.0,0.0221482]
[1766761958647,0.01150655,86907.0,86885.0,0.07237]
[1766761958887,0.01150695,86904.0,86870.0,0.07237]
[1766761959069,0.04604,86903.0,86870.0,0.07237]
[1766761959286,0.04614784,86903.0,86870.0,0.07237]
[1766761959466,0.04614784,86903.0,86871.0,0.007237]
[1766761960262,0.01150721,86902.0,86871.0,0.007237]
[1766761960664,0.01150734,86901.0,86871.0,0.007237]
[1766761960862,0.05765492,86903.0,86871.0,0.007237]
[1766761961050,0.011508,86896.0,86871.0,0.007237]
[1766761961256,0.0118,86895.0,86872.0,0.0079607]
[1766761962768,0.0118,86895.0,86870.0,0.07237]
[1766761963156,0.00010784,86903.0,86895.0,0.000549]
[1766761963359,0.0118,86902.0,86877.0,0.06752]
[1766761963806,0.00010784,86903.0,86879.0,0.06752]
[1766761964008,0.00024053,86885.0,86877.0,0.06752]
[1766761964207,5.3e-07,86885.0,86876.0,0.0118]
[1766761964673,5.3e-07,86885.0,86862.0,0.06956]
[1766761965113,5.3e-07,86885.0,86863.0,0.0118]
[1766761965850,5.3e-07,86885.0,86865.0,0.06956]
[1766761966253,5.3e-07,86885.0,86868.0,0.06956]
[1766761966478,0.07798496,86919.0,86877.0,0.06956]
[1766761966479,0.04604,86915.0,86877.0,0.06956]
[1766761966635,0.0118,86909.0,86879.0,0.06956]
[1766761966842,0.01150708,86903.0,86877.0,0.00010784]
[1766761967058,0.01150747,86900.0,86877.0,0.00010784]
[1766761967261,0.02330721,86902.0,86877.0,0.00010784]
[1766761967481,0.37433267,86931.0,86877.0,0.00010784]
[1766761967482,0.01150615,86910.0,86877.0,0.00010784]
[1766761967683,0.04604,86905.0,86877.0,0.00010784]
[1766761967899,0.04604,86910.0,86877.0,0.00010784]
[1766761968095,0.2589,86930.0,86880.0,0.06956]
[1766761968096,0.06902562,86925.0,86880.0,0.06956]
[1766761968306,0.06903115,86918.0,86882.0,0.06956]
[1766761968517,0.04604,86928.0,86891.0,0.12897728]
[1766761968773,0.06648,86931.0,86891.0,0.06956]
[1766761968915,0.05784,86930.0,86891.0,0.06956]
[1766761969147,0.01150231,86939.0,86893.0,0.06956]
[1766761969452,0.06648,86944.0,86893.0,0.06956]
[1766761969453,0.01150258,86937.0,86902.0,0.06956]
[1766761969655,0.0575165,86932.0,86903.0,0.0118]
[1766761969864,0.01150324,86932.0,86904.0,0.008136]
[1766761970066,0.0118,86936.0,86904.0,0.008136]
[1766761970280,0.01150337,86931.0,86904.0,0.008136]
[1766761970461,0.0118,86930.0,86904.0,0.008136]
[1766761970655,0.04604,86940.0,86904.0,0.008136]
[1766761970656,0.06648,86953.0,86905.0,0.06956]
[1766761970879,0.06648,86953.0,86892.0,0.02218466]
[1766761970880,0.0115035,86930.0,86906.0,0.0087096]
[1766761971085,0.00010792,86930.0,86898.0,0.08136]
[1766761971468,0.01150469,86921.0,86898.0,0.08136]
[1766761971785,0.00010792,86930.0,86898.0,0.08136]
[1766761971786,0.00010792,86930.0,86921.0,0.000549]
[1766761972111,0.01150178,86943.0,86920.0,0.0118]
[1766761972307,0.01150178,86943.0,86921.0,0.0118]
[1766761972308,0.01150231,86939.0,86921.0,0.0118]
[1766761972512,0.00035965,86943.0,86921.0,0.0118]
[1766761972667,0.05751578,86933.0,86911.0,0.06956]
[1766761972868,0.01150311,86933.0,86912.0,0.018756]
[1766761973196,0.01150364,86929.0,86900.0,0.01289773]
[1766761973394,0.01150337,86931.0,86901.0,0.0118]
[1766761973714,0.0115035,86930.0,86901.0,0.0118]
[1766761973876,0.01150324,86932.0,86901.0,0.0118]
[1766761974213,0.01150245,86938.0,86902.0,0.06956]
[1766761974415,0.0118,86936.0,86904.0,0.06956]
[1766761974749,0.00035965,86943.0,86904.0,0.06956]
[1766761974750,0.02330218,86940.0,86904.0,0.06956]
[1766761974949,0.0118,86940.0,86904.0,0.06956]
[1766761975317,0.02330218,86940.0,86904.0,0.06956]
[1766761975858,0.0118,86940.0,86904.0,0.06956]
[1766761976073,0.0118,86940.0,86906.0,0.06956]
[1766761976278,0.01150231,86939.0,86906.0,0.06956]
[1766761976630,0.02330218,86940.0,86906.0,0.06956]
[1766761977265,0.0118,86940.0,86906.0,0.06956]
[1766761977973,0.00035965,86943.0,86906.0,0.06956]
[1766761978221,0.00035965,86943.0,86905.0,0.02441685]
[1766761978222,0.00035965,86943.0,86918.0,0.12897728]
[1766761978426,6.5e-07,86943.0,86920.0,0.06956]
[1766761978630,6.5e-07,86943.0,86922.0,0.06956]
[1766761978792,6.5e-07,86943.0,86921.0,0.0118]
[1766761978793,6.5e-07,86943.0,86924.0,0.06956]
[1766761980541,6.5e-07,86943.0,86923.0,0.01274]
[1766761980542,0.02922857,86966.0,86943.0,0.06956]
[1766761980748,0.06648,86980.0,86943.0,0.06956]
[1766761980749,0.02354378,86975.0,86966.0,8.315e-05]
[1766761981039,0.01149808,86971.0,86949.0,0.0118]
[1766761981259,0.01149808,86971.0,86909.0,0.1212]
[1766761981260,0.00025015,86949.0,86923.0,0.02454]
[1766761981566,0.01150112,86948.0,86923.0,0.02489965]
[1766761981771,0.01150112,86948.0,86903.0,0.01150708]
[1766761981772,0.00055,86923.0,86905.0,0.06956]
[1766761981891,0.00055,86923.0,86905.0,0.00010792]
[1766761982093,0.05752863,86914.0,86891.0,0.06956]
[1766761982336,0.00055,86923.0,86891.0,0.06956]
[1766761982337,0.01150469,86921.0,86891.0,0.06966784]
[1766761982543,0.0407334,86920.0,86891.0,0.06966784]
[1766761982784,0.01150496,86919.0,86891.0,0.06966784]
[1766761982989,0.02354378,86923.0,86891.0,0.06966784]
[1766761983192,0.0118,86922.0,86893.0,0.06956]
[1766761983397,0.0118,86922.0,86891.0,0.00010784]
[1766761983598,0.0118,86922.0,86830.0,0.66681712]
[1766761983599,0.000441,86893.0,86830.0,0.66681712]
[1766761983753,0.000441,86893.0,86862.0,0.19853728]
[1766761983958,0.0118,86896.0,86864.0,0.06956]
[1766761984685,0.0118,86897.0,86864.0,0.06956]
[1766761984876,0.02330787,86897.0,86864.0,0.06956]
[1766761985337,0.0118,86897.0,86864.0,0.06956]
[1766761985465,0.01150814,86895.0,86864.0,0.06956]
[1766761985664,0.01150827,86894.0,86865.0,0.01518577]
[1766761985861,0.0118,86897.0,86865.0,0.01518577]
[1766761986197,0.0118,86897.0,86867.0,0.06956]
[1766761986400,0.02354378,86910.0,86897.0,0.000215]
[1766761986582,0.0118,86916.0,86890.0,0.06956]
[1766761986789,0.02354378,86925.0,86895.0,0.06956]
[1766761986985,0.0118,86924.0,86895.0,0.06956]
[1766761987328,0.05752614,86917.0,86896.0,0.0118]
[1766761987640,0.00690312,86916.0,86896.0,0.0118]
[1766761988215,0.00010778,86917.0,86881.0,0.06956]
[1766761988443,0.03534378,86924.0,86895.0,0.12897728]
[1766761988444,0.02354378,86924.0,86895.0,0.12897728]
[1766761988600,0.0118,86935.0,86897.0,0.06956]
[1766761989005,0.05273083,86943.0,86910.0,0.06956]
[1766761989204,0.04604,86950.0,86895.0,0.00010778]
[1766761989205,0.01150284,86935.0,86895.0,0.00010778]
[1766761989431,0.01150311,86933.0,86896.0,0.06956]
[1766761989624,0.01150258,86937.0,86900.0,0.06956]
[1766761989890,0.01150258,86937.0,86899.0,0.12897728]
[1766761989891,0.02350226,86938.0,86902.0,0.06956]
[1766761990032,0.01150258,86937.0,86902.0,0.06956]
[1766761990483,0.01150271,86936.0,86902.0,0.06956]
[1766761990648,0.02350226,86941.0,86902.0,0.06956]
[1766761990844,0.01150271,86936.0,86902.0,0.06956]
[1766761991084,0.0118,86935.0,86903.0,0.09269818]
[1766761991492,0.0118,86935.0,86895.0,0.00010778]
[1766761991493,0.01150496,86919.0,86895.0,0.00010778]
[1766761991691,0.000107,86903.0,86895.0,0.00010778]
[1766761991890,0.02350226,86924.0,86895.0,0.00010778]
[1766761992093,0.0118,86923.0,86895.0,0.00010778]
[1766761992309,0.0118,86923.0,86895.0,0.00825456]
[1766761992617,0.0118,86927.0,86895.0,0.00825456]
[1766761992774,0.02350226,86931.0,86902.0,0.06956]
[1766761992971,0.02350226,86931.0,86898.0,0.12897728]
[1766761992972,0.0118,86940.0,86912.0,0.12897728]
[1766761993173,0.0118,86940.0,86913.0,0.02469773]
[1766761993339,0.0118,86940.0,86914.0,0.0118]
[1766761993546,0.01150324,86932.0,86914.0,0.0118]
[1766761993748,0.0118,86940.0,86913.0,0.0118]
[1766761993749,0.000107,86914.0,86913.0,0.0118]
[1766761993948,0.01150403,86926.0,86908.0,0.0118]
[1766761994167,0.01150403,86926.0,86881.0,0.01150999]
[1766761994168,0.02645896,86925.0,86905.0,0.0118]
[1766761994365,0.01150522,86917.0,86890.0,0.07143]
[1766761994572,0.01150536,86916.0,86896.0,0.0118]
[1766761994827,0.01150522,86917.0,86896.0,0.0118]
[1766761994984,0.01150549,86915.0,86890.0,0.07143]
[1766761995184,0.01150602,86911.0,86895.0,7.8e-07]
[1766761995568,0.01150628,86909.0,86895.0,7.8e-07]
[1766761995773,0.01150602,86911.0,86895.0,7.8e-07]
[1766761996106,0.01150589,86912.0,86895.0,7.8e-07]
[1766761996303,0.01150655,86907.0,86895.0,7.8e-07]
[1766761996502,0.01150615,86910.0,86895.0,7.8e-07]
[1766761996719,0.03503466,86913.0,86895.0,7.8e-07]
[1766761997029,0.01150589,86912.0,86895.0,7.8e-07]
[1766761997482,0.03532891,86915.0,86895.0,7.8e-07]
[1766761997652,0.0118,86915.0,86895.0,7.8e-07]
[1766761998522,0.00011,90168.0,86895.0,7.8e-07]
[1766761998523,0.02352891,86921.0,86895.0,7.8e-07]
[1766761998749,0.01150469,86921.0,86896.0,0.07143]
[1766761998892,0.0118,86922.0,86897.0,0.00832308]
[1766761999298,0.01150522,86917.0,86897.0,0.00832308]
[1766761999501,0.01150522,86917.0,86895.0,7.8e-07]
[1766761999502,0.01150628,86909.0,86895.0,7.8e-07]
[1766761999666,0.01150747,86900.0,86895.0,7.8e-07]
[1766761999877,0.05753938,86897.0,86895.0,7.8e-07]
[1766762000105,0.02330774,86898.0,86895.0,7.8e-07]
[1766762000615,0.0118,86898.0,86895.0,7.8e-07]
[1766762000813,0.02330774,86898.0,86895.0,7.8e-07]
[1766762001223,0.02330774,86898.0,86862.0,0.04604]
[1766762001224,0.07175,86897.0,86862.0,0.04604]
[1766762001421,0.07175,86897.0,86862.0,0.00010792]
[1766762001422,0.0115092,86887.0,86862.0,0.00010792]
[1766762001642,0.0118,86886.0,86862.0,0.00010792]
[1766762001828,0.02352891,86892.0,86862.0,0.00010792]
[1766762002145,0.0118,86892.0,86871.0,0.07143]
[1766762002750,0.0118,86895.0,86871.0,0.07143]
[1766762002951,0.01150827,86894.0,86863.0,0.0118]
[1766762003199,0.01150853,86892.0,86863.0,0.0118]
[1766762003397,0.01150973,86883.0,86862.0,0.00010792]
[1766762003545,0.08325893,86889.0,86862.0,0.00010792]
[1766762003747,0.0118,86896.0,86864.0,0.07143]
[1766762004740,0.023308,86896.0,86864.0,0.07143]
[1766762004973,0.01150827,86894.0,86864.0,0.07143]
[1766762005172,0.06904903,86895.0,86865.0,0.0118]
[1766762005372,0.0118,86894.0,86865.0,0.0118]
[1766762005816,0.0115084,86893.0,86865.0,0.0118]
[1766762006021,0.0118,86894.0,86864.0,0.03586718]
[1766762006171,0.08355,86894.0,86863.0,0.0118]
[1766762006371,0.0118,86894.0,86863.0,0.08323]
[1766762006574,0.07175,86908.0,86871.0,0.07143]
[1766762006787,0.07175,86908.0,86869.0,0.01151158]
[1766762006788,0.04604,86912.0,86879.0,0.07143]
[1766762006962,0.07175,86922.0,86881.0,0.07143]
[1766762007156,0.04604,86936.0,86895.0,0.07143]
[1766762007364,0.0118,86935.0,86897.0,0.07143]
[1766762007565,0.01150483,86920.0,86897.0,0.07143]
[1766762007767,0.01150483,86920.0,86786.0,0.45749444]
[1766762007768,0.02330496,86919.0,86892.0,0.0118]
[1766762008001,0.0118,86919.0,86883.0,0.07143]
[1766762008223,0.0118,86919.0,86884.0,0.1059683]
[1766762008425,0.01190788,86919.0,86885.0,0.07143]
[1766762009153,0.01150509,86918.0,86885.0,0.07143]
[1766762009495,0.01150642,86908.0,86865.0,0.07143]
[1766762009706,0.0118,86907.0,86874.0,0.04604]
[1766762009906,0.0118,86907.0,86875.0,0.07143]
[1766762010105,0.0118,86907.0,86876.0,0.023547]
[1766762010511,0.06903274,86916.0,86876.0,0.023547]
[1766762010512,0.01150483,86920.0,86879.0,0.07143]
[1766762010713,0.01150589,86912.0,86879.0,0.07143]
[1766762010917,0.0118,86914.0,86879.0,0.07143]
[1766762011452,0.0118,86915.0,86881.0,0.12897728]
[1766762011831,0.02330549,86915.0,86881.0,0.12897728]
[1766762012011,0.02330549,86915.0,86882.0,0.02582473]
[1766762012207,0.01150575,86913.0,86882.0,0.02582473]
[1766762012412,0.01150575,86913.0,86880.0,0.0118]
[1766762012612,0.01150562,86914.0,86881.0,0.12897728]